[Event "Israeli Team-ch 2023"]
[Site "Petah Tikva"]
[Date "2023.01.20"]
[Round "3.12"]
[White "Katkov, Michelle"]
[Black "Huzman, Alexander"]
[Result "0-1"]
[ECO "B10"]
[WhiteElo "2220"]
[BlackElo "2526"]
[Annotator "TA"]
[PlyCount "104"]
[EventDate "2023.01.13"]
[EventCountry "ISR"]
[SourceTitle "playchess.com"]
[Source "ChessBase"]
[SourceQuality "1"]
[TimeControl "40/5400+30:1800+30"]

{[%evp 9,104,6,10,9,10,0,54,-6,3,-22,-6,-35,0,-8,-9,-16,-8,-17,-14,-17,0,-26,-29,-61,-59,-74,-69,-61,-60,-60,-59,-64,-49,-51,-51,-51,-52,-51,-48,-51,-33,-51,-25,-38,-38,-39,-39,-39,-39,-39,-40,-43,-33,-33,-33,-47,-45,-45,-26,-102,40,-45,-45,-37,-37,-37,-37,-37,-22,-267,-289,-758,-1231,-1325,-1332,-1344,-1076,-1346,-1015,-1028,-1003,-912,0,-692,-677,-12302,-5509,-5185,-1341,-1341,-1026,-12846,-10014,-29986,-29987,-29989,-29990]} 1. e4 {[%emt 0:00:04]} c6 {[%emt 0:00:26]} 2. Nf3 {[%emt 0:01:50]} d5 {[%emt 0:00:35]} 3. d3 {[%emt 0:00:06]} Qc7 {[%emt 0:00:04]} 4. Nc3 {[%emt 0:05:35]} dxe4 {[%emt 0:03:16]} 5. dxe4 {[%emt 0:00:38]} e5 {[%emt 0:00:09]} 6. Bc4 {[%emt 0:03:00] B10: Caro-Kann: 2 d3 and 2 c4.} b5 {[%emt 0:05:14]} 7. Bb3 {[%emt 0:01:07]} Na6 {[%emt 0:00:47]} (7... h6 $1 $11) 8. O-O {[%emt 0:12:08]} (8. Ng5 $14 Nh6 9. Qh5) 8... Nc5 $1 $11 {[%emt 0:01:13] [#]} 9. Qe2 $146 {[%emt 0:04:50]} ({Predecessor:} 9. a3 Nxb3 10. cxb3 Nf6 11. Qc2 Bd6 12. Bg5 Nh5 13. Rac1 f6 14. Be3 Qb7 15. Qd1 {1-0 Zinchenko,A (2089)-Bogdanov,R (2064) Rostov-ch Rostov on Don 2010 (8)}) 9... Nf6 {[%emt 0:05:10]} 10. Bg5 {[%emt 0:05:47]} Be7 {[%emt 0:03:49]} (10... a5 $5 {[%cal Rc8a6]} 11. a3 Ba6 12. Bxf6 gxf6 $15) 11. h3 {[%emt 0:08:47]} O-O {[%emt 0:08:30]} 12. Qe3 {[%emt 0:04:31]} Ne6 {[%emt 0:03:58]} 13. Bxf6 {[%emt 0:07:41]} Bxf6 {[%emt 0:01:25]} 14. Ne2 {[%emt 0:02:01] Inhibits Nd4.} Qb6 {[%emt 0:07:16]} 15. Qxb6 {[%emt 0:10:37]} axb6 {[%emt 0:00:21]} 16. c3 {[%emt 0:01:21]} Nc5 {[%emt 0:02:53]} 17. Ng3 {[%emt 0:01:47][%cal Be2g3,Bg3f1,Bf1e3][%mdl 32]} g6 {[%emt 0:03:07]} 18. Rfd1 {[%emt 0:02:49]} Kg7 {[%emt 0:01:24]} 19. Bc2 {[%emt 0:05:11]} Be6 {[%emt 0:02:16]} 20. a3 {[%emt 0:01:30]} Rfd8 {[%emt 0:04:50]} 21. Nf1 {[%emt 0:02:13]} Kf8 {[%emt 0:14:10]} 22. Ne3 {[%emt 0:01:39]} h5 {[%emt 0:00:04] Prevents Ng4} 23. Kf1 {[%emt 0:00:48]} Ke7 {[%emt 0:01:49]} 24. Ke2 {[%emt 0:00:47]} Bg7 {[%emt 0:00:58]} 25. Ne1 {[%emt 0:02:16]} Bc4+ {[%emt 0:10:20]} 26. Nxc4 {[%emt 0:02:06]} bxc4 {[%emt 0:00:05]} 27. h4 {[%emt 0:00:52]} b5 {[%emt 0:05:01]} 28. g3 {[%emt 0:00:58]} Bh6 {[%emt 0:01:35]} 29. Ng2 {[%emt 0:03:01]} Rxd1 {[%emt 0:05:24]} 30. Rxd1 {[%emt 0:02:10]} Rd8 {[%emt 0:00:24]} 31. Rxd8 {[%emt 0:01:30]} Kxd8 $15 {[%emt 0:00:43][%mdl 4096] Endgame KBN-KBN} 32. f4 {[%emt 0:00:27]} f6 {[%emt 0:04:39]} 33. Kf3 {[%emt 0:01:30]} Kc7 {[%emt 0:00:55]} 34. Ne3 {[%emt 0:00:52]} (34. g4 $11) 34... Ne6 {[%emt 0:01:14]} ({Better is} 34... exf4 $1 $17 35. gxf4 Nd3 36. Bxd3 cxd3) 35. Ng2 {[%emt 0:01:50]} (35. f5 $14 gxf5 36. exf5) 35... g5 {[%emt 0:01:05]} 36. hxg5 {[%emt 0:01:12]} fxg5 {[%emt 0:00:04]} 37. f5 {[%emt 0:01:59]} g4+ {[%emt 0:00:07]} 38. Ke2 {[%emt 0:00:05]} Nc5 {[%emt 0:00:58] White must now prevent ...Bc1.} 39. Kd1 {[%emt 0:01:38] Inhibits Bc1.} (39. Ne3 $11) 39... Bg5 {[%emt 0:00:32]} 40. Nh4 $2 {[%emt 0:00:36]} (40. Bb1) 40... Bxh4 $19 {[%emt 0:01:26]} 41. gxh4 {[%emt 0:00:59] [#] KB-KN} Nd3 $1 {[%emt 0:00:31] And now ...g3 would win.} 42. Ke2 {[%emt 0:03:23]} Nxb2 {[%emt 0:00:22]} 43. Ke3 {[%emt 0:01:19]} Kd6 {[%emt 0:00:48]} 44. Ke2 {[%emt 0:00:31]} Ke7 {[%emt 0:12:30]} 45. Ke3 {[%emt 0:00:37]} Kd6 {[%emt 0:03:20]} 46. Ke2 $1 {[%emt 0:00:06]} c5 {[%emt 0:01:06][%cal Bc6c5,Bc5b4,Bb4b3][%mdl 32]} 47. Ke3 {[%emt 0:00:51]} g3 {[%emt 0:00:18][%cal Ob5b4] ( -> ...b4!)} 48. Kf3 {[%emt 0:01:23]} Nd3 {[%emt 0:00:11]} (48... b4 $142 49. axb4 cxb4 50. cxb4 Nd3 51. Kxg3 Nxb4) 49. Kxg3 {[%emt 0:02:40] [#]} b4 $1 {[%emt 0:00:23]} 50. axb4 {[%emt 0:02:37]} cxb4 {[%emt 0:00:39]} 51. Bxd3 {[%emt 0:07:01]} cxd3 {[%emt 0:00:09]} 52. Kf3 {[%emt 0:00:03]} b3 {[%emt 0:00:15] Weighted Error Value: White=0.58/Black=0.35} 0-1

[Event "Israeli Team-ch 2023"]
[Site "Petah Tikva"]
[Date "2023.01.20"]
[Round "3.13"]
[White "Kupervaser, Erez"]
[Black "Greenfeld, Alon"]
[Result "1/2-1/2"]
[ECO "B30"]
[WhiteElo "2293"]
[BlackElo "2460"]
[Annotator "TA"]
[PlyCount "113"]
[EventDate "2023.01.13"]
[EventCountry "ISR"]
[SourceTitle "playchess.com"]
[Source "ChessBase"]
[SourceQuality "1"]
[TimeControl "40/5400+30:1800+30"]

{[%evp 10,113,20,27,37,33,41,39,29,13,24,18,16,43,47,48,41,33,57,56,51,37,109,51,89,3,116,123,116,-36,-33,-24,-39,-41,-36,-71,0,-33,-25,-74,-79,-88,-88,-89,-83,-102,-72,-126,-134,-131,-117,-115,-96,-77,-99,-76,-31,-30,-34,-20,-35,-64,0,-69,-48,-49,-43,-135,-150,-141,-136,-141,-137,-227,-218,-291,-181,-368,-295,-834,-836,-552,-439,-439,0,0,0,0,0,0,0,0,0,0,0,0,0,0,0,0,0,0,0,0,0,0]} 1. e4 {[%emt 0:03:44]} c5 {[%emt 0:01:56]} 2. Nf3 {[%emt 0:00:15]} Nc6 {[%emt 0:00:46]} 3. Bb5 {[%emt 0:01:08]} e6 {[%emt 0:00:55]} 4. O-O {[%emt 0:00:59]} Nge7 {[%emt 0:00:34]} 5. d4 {[%emt 0:01:29]} cxd4 {[%emt 0:00:44]} 6. Nxd4 {[%emt 0:00:08]} Ng6 {[%emt 0:02:01] B30: Sicilian: 2...Nc6 3 Bb5, lines without ...g6.} 7. Be3 {[%emt 0:01:26]} Be7 {[%emt 0:01:30]} 8. Be2 {[%emt 0:01:55]} O-O {[%emt 0:03:44] White is slightly better.} 9. c4 {[%emt 0:03:04]} b6 {[%emt 0:03:27] Nowadays more popular than 9...Nxd4.} 10. Nc3 {[%emt 0:00:37]} Bb7 {[%emt 0:03:16]} 11. Nb3 {[%emt 0:04:19]} f5 {[%emt 0:30:24]} 12. exf5 {[%emt 0:02:59]} Rxf5 {[%emt 0:00:44]} 13. f4 {[%emt 0:00:14] [#]} Nh4 $146 {[%emt 0:21:59]} ({Predecessor:} 13... Rf7 14. g3 Nb4 15. Qd2 Na6 16. Rad1 Nc5 17. Nb5 Qc8 18. Nxc5 Bxc5 19. b4 Bf8 {1-0 Ivanchuk,V (2728)-Moiseenko,A (2649) TUR-chT Izmir 2016 (9.2)}) 14. g3 {[%emt 0:11:37]} Rf6 {[%emt 0:00:10]} 15. Bf2 {[%emt 0:05:16]} Rg6 {[%emt 0:09:07]} (15... Na5 $14) 16. Nd2 {[%emt 0:14:03]} (16. Bh5 $16) 16... Na5 {[%emt 0:05:59][%cal Bc6a5,Ba5c4,Bc4e5,Be5f3][%mdl 32]} 17. Bd3 {[%emt 0:09:57]} (17. Bh5 $16) 17... Qc7 {[%emt 0:03:38]} 18. Bxg6 $16 {[%emt 0:07:16]} Nxg6 {[%emt 0:00:04]} 19. Be3 $2 {[%emt 0:05:25]} (19. Rc1 $16) 19... Qc6 $15 {[%emt 0:02:00][%csl Gb7][%cal Rc6g2] [#]} 20. Qf3 {[%emt 0:00:49] Repels Qg2+} Qxf3 $40 {[%emt 0:00:48][%mdl 128] Black mounts an attack.} 21. Nxf3 {[%emt 0:00:11] Strongly threatening b3.} Nxc4 {[%emt 0:00:04]} 22. Nd1 {[%emt 0:01:32]} Bf6 {[%emt 0:02:38]} ({Black should try} 22... Nxe3 $17 23. Nxe3 Bc5) 23. Rf2 {[%emt 0:07:51] White is weak on the light squares} (23. Rc1 $5 {[%cal Rc1c4]} Nxe3 24. Nxe3 $11) 23... e5 {[%emt 0:01:41]} 24. fxe5 {[%emt 0:16:16]} (24. Rc1 $11 {should be considered.} Nxe3 25. Nxe3) 24... Ngxe5 $17 {[%emt 0:00:10]} 25. Nxe5 {[%emt 0:00:00]} Nxe5 {[%emt 0:00:11]} 26. h3 {[%emt 0:00:00]} Re8 {[%emt 0:00:14][%mdl 1024] Black has strong compensation.} 27. Rc1 {[%emt 0:00:00]} Nf3+ {[%emt 0:01:44]} 28. Kf1 {[%emt 0:00:00]} ({White should play} 28. Kg2 Ne5+ 29. Kf1) 28... Ba6+ {[%emt 0:00:05] This pair of bishops is nice.} 29. Kg2 {[%emt 0:00:00]} Ne1+ {[%emt 0:00:06]} 30. Kg1 {[%emt 0:00:00]} Nd3 {[%emt 0:00:04]} 31. Rc7 {[%emt 0:00:00][%csl LRa7,LRd7]} Nxf2 {[%emt 0:00:14]} 32. Kxf2 {[%emt 0:00:00]} Rf8 {[%emt 0:01:52]} (32... Ra8 $5 {[%cal Ra6b5]} 33. Nc3 h6 $17) 33. Rxa7 {[%emt 0:01:15]} Bb5 {[%emt 0:00:50]} (33... Bxb2+ $2 34. Ke1 $18) 34. Ke1 $1 {[%emt 0:01:17]} Be5 {[%emt 0:00:14]} 35. Kd2 {[%emt 0:01:22]} Rf3 {[%emt 0:00:50]} (35... Bxg3 $15 36. Bxb6 Bd6) 36. Nc3 {[%emt 0:01:31]} (36. a4 $11 Bc6 37. b4) 36... Bc6 {[%emt 0:00:08]} 37. Ne2 $1 {[%emt 0:00:23]} b5 {[%emt 0:01:03]} 38. Bd4 {[%emt 0:00:39]} (38. b3 $1 $15) 38... Bxd4 {[%emt 0:01:43]} 39. Nxd4 {[%emt 0:00:02]} Rxg3 {[%emt 0:00:07]} 40. Nxc6 {[%emt 0:00:58]} dxc6 {[%emt 0:00:03][%mdl 4096] Endgame KR-KR} 41. Rc7 {[%emt 0:30:09]} (41. Ra8+ $17 {keeps fighting.} Kf7 42. h4) 41... Rxh3 $19 {[%emt 0:31:54]} 42. Rxc6 {[%emt 0:00:36]} b4 {[%emt 0:00:00] ...Rh2+ would be deadly.} 43. Rc4 $2 {[%emt 0:00:00]} (43. Rc8+ Kf7 44. Rc7+ Kf6 45. Rc6+ Ke7 46. Rc7+ Kf6 47. Rc6+ Kf7 48. Rc7+ Kf6) 43... Rh2+ {[%emt 0:00:00]} 44. Kc1 $2 {[%emt 0:00:00]} (44. Ke3 Rxb2 45. Kf4) 44... h5 {[%emt 0:00:00]} 45. Rxb4 {[%emt 0:00:00]} g5 {[%emt 0:00:00] And now ...g4 would win.} 46. Kd1 {[%emt 0:00:00] [#]} g4 $2 {[%emt 0:00:00]} (46... Rg2 $1 $19 47. Ke1 h4) 47. Ke1 $1 $11 {[%emt 0:00:00] The position is equal.} Kf7 {[%emt 0:00:00]} 48. Kf1 {[%emt 0:00:00]} Kg6 {[%emt 0:00:00]} 49. a4 {[%emt 0:00:00][%cal Ba2a4,Ba4a5,Ba5a6][%mdl 32]} Kg5 {[%emt 0:00:00] Hoping for ...g3.} 50. a5 {[%emt 0:00:00]} g3 {[%emt 0:00:00]} 51. a6 {[%emt 0:00:00]} Rf2+ {[%emt 0:00:01]} 52. Kg1 {[%emt 0:00:00]} h4 $1 {[%emt 0:02:38]} 53. Rb5+ {[%emt 0:00:00]} (53. a7 $5 h3 $8 54. Rb5+ (54. a8=B h2+ 55. Kh1 Rf1+ 56. Kg2 h1=Q+ 57. Kxg3 Qxa8 58. Rb5+ Kh6 59. Rb6+ Kh7 60. Kh2 Qh1+ 61. Kg3 Rf3+ 62. Kg4 Qh3+ 63. Kg5 Rf5#) 54... Kg4 55. Rb4+ (55. a8=B $2 h2+ 56. Kh1 Rf1+ 57. Kg2 h1=Q#) 55... Kg5 56. Rb5+ (56. a8=B h2+ 57. Kh1 Rf1+ 58. Kg2 h1=Q+ 59. Kxg3 Qxa8 60. Rb5+ Kf6 61. Rb6+ Ke7 62. Rb5 Qf3+ 63. Kh4 Rh1+ 64. Kg5 Rh5+ {[%mdl 64] Skewer} 65. Kg6 Qf7#) 56... Kg4 57. Rb4+ (57. a8=B $2 h2+ 58. Kh1 Rf1+ 59. Kg2 h1=Q#) 57... Kg5 $11) 53... Kg4 {[%emt 0:01:04]} 54. Rb4+ {[%emt 0:00:00]} (54. a7 $5 h3 $8 55. Rb4+ (55. a8=B $2 h2+ 56. Kh1 Rf1+ 57. Kg2 h1=Q#) 55... Kg5 56. Rb5+ (56. a8=B h2+ 57. Kh1 Rf1+ 58. Kg2 h1=Q+ 59. Kxg3 Qxa8 60. Rb5+ Kf6 61. Rb6+ Ke7 62. Rb5 Qf3+ 63. Kh4 Rh1+ 64. Kg5 Rh5+ {[%mdl 64] Skewer} 65. Kg6 Qf7#) 56... Kg4 57. Rb4+ (57. a8=B $2 h2+ 58. Kh1 Rf1+ 59. Kg2 h1=Q#) 57... Kg5 58. Rb5+ (58. a8=B h2+ 59. Kh1 Rf1+ 60. Kg2 h1=Q+ 61. Kxg3 Qxa8 62. Rb5+ Kf6 63. Rb6+ Ke7 64. Rh6 Qf3+ 65. Kh4 Rh1+ 66. Kg5 Rg1+ 67. Kh4 Qh1#) 58... Kg4 $11) 54... Kg5 {[%emt 0:01:12]} 55. Rb5+ {[%emt 0:00:00]} (55. a7 $5 h3 $8 56. Rb5+ (56. a8=B h2+ 57. Kh1 Rf1+ 58. Kg2 h1=Q+ 59. Kxg3 Qxa8 60. Rb5+ Kh6 61. Rb6+ Kh7 62. Kh2 Qh1+ 63. Kg3 Rf3+ 64. Kg4 Qh3+ 65. Kg5 Rf5#) 56... Kh4 57. Rb4+ (57. a8=B $2 h2+ 58. Kh1 Rf1+ 59. Kg2 h1=Q#) 57... Kg5 58. Rb5+ (58. a8=B h2+ 59. Kh1 Rf1+ 60. Kg2 h1=Q+ 61. Kxg3 Qxa8 62. Rb5+ Kh6 63. Rb6+ Kh7 64. Rb3 Qg8+ 65. Kh2 Qxb3 66. Kg2 Qf3+ 67. Kh2 Rh1#) 58... Kh4 59. Rb4+ (59. a8=B $2 h2+ 60. Kh1 Rf1+ 61. Kg2 h1=Q#) 59... Kg5 $11) 55... Kg4 {[%emt 0:00:17]} 56. Rb4+ {[%emt 0:00:00]} (56. a7 $5 h3 $8 57. Rb4+ (57. a8=B $2 h2+ 58. Kh1 Rf1+ 59. Kg2 h1=Q#) 57... Kf5 58. Rh4 (58. a8=B h2+ 59. Kh1 Rf1+ 60. Kg2 h1=Q+ 61. Kxg3 Qxa8 62. Rb5+ Kf6 63. Rb6+ Ke7 64. Rh6 Qf3+ 65. Kh4 Rh1+ 66. Kg5 Rg1+ 67. Kh4 Qh1#) (58. Rb5+ Kg4 $11) 58... Rg2+ 59. Kf1 Rxb2 60. Rxh3 $11 (60. a8=B $2 Rb1+ 61. Ke2 g2 $19) (60. a8=Q g2+ $11)) 56... Kg5 {[%emt 0:00:23] ( -> ...h3)} 57. Rb5+ {[%emt 0:00:00] White happily takes the draw.   Weighted Error Value: White=0.29 (precise) /Black=0.23 (precise)} (57. a7 $5 h3 $8 58. Rb5+ (58. a8=B {is a self mate.} h2+ 59. Kh1 Rf1+ 60. Kg2 h1=Q+ 61. Kxg3 Qxa8 62. Rb5+ Kh6 63. Rb6+ Kh7 64. Rb3 Qg8+ 65. Kh2 Qxb3 66. Kg2 Qf3+ 67. Kh2 Rh1#) 58... Kg4 59. Rb4+ (59. a8=B $2 {gets mated.} h2+ 60. Kh1 Rf1+ 61. Kg2 h1=Q#) 59... Kg5 60. Rb5+ (60. a8=B h2+ 61. Kh1 Rf1+ 62. Kg2 h1=Q+ 63. Kxg3 Qxa8 64. Rb5+ Kh6 65. Rb6+ Kh7 66. Kh2 Qh1+ 67. Kg3 Rf3+ 68. Kg4 Qh3+ 69. Kg5 Rf5#) 60... Kg4 61. Rb4+ (61. a8=B $2 h2+ 62. Kh1 Rf1+ 63. Kg2 h1=Q#) 61... Kg5 $11) 1/2-1/2

[Event "Israeli Team-ch 2023"]
[Site "Petah Tikva"]
[Date "2023.01.20"]
[Round "3.14"]
[White "Khmelniker, Ilya"]
[Black "Shohat, Yotam"]
[Result "1-0"]
[ECO "E76"]
[WhiteElo "2476"]
[BlackElo "2284"]
[Annotator "TA"]
[PlyCount "95"]
[EventDate "2023.01.13"]
[EventCountry "ISR"]
[SourceTitle "playchess.com"]
[Source "ChessBase"]
[SourceQuality "1"]
[TimeControl "40/5400+30:1800+30"]

{[%evp 22,95,27,17,28,32,41,32,43,43,44,-17,-14,-3,-11,-6,16,6,16,25,52,33,41,39,52,33,33,37,53,58,61,0,0,0,102,67,82,35,56,25,183,166,176,172,175,172,268,79,50,47,139,84,66,69,196,182,205,177,175,110,822,812,803,783,29991,29992,29992,29993,29993,29994,29995,29995,29996,29997,29997,29998]} 1. d4 {[%emt 1:31:00]} Nf6 {[%emt 0:04:41]} 2. c4 {[%emt 0:00:00]} g6 {[%emt 0:00:07]} 3. Nc3 {[%emt 0:00:00]} Bg7 {[%emt 0:00:05]} 4. e4 {[%emt 0:00:00]} O-O {[%emt 0:00:07]} 5. f4 {[%emt 0:00:00]} d6 {[%emt 0:00:06]} 6. Nf3 {[%emt 0:00:00]} c5 {[%emt 0:00:06]} 7. dxc5 {[%emt 0:00:00]} Qa5 {[%emt 0:00:44]} 8. Bd3 {[%emt 0:00:00]} Qxc5 {[%emt 0:00:40]} 9. Qe2 {[%emt 0:00:00]} Bg4 {[%emt 0:01:58]} 10. Be3 {[%emt 0:00:00]} Qa5 {[%emt 0:00:07]} 11. O-O {[%emt 0:00:00]} Nc6 {[%emt 0:00:11]} 12. Rac1 {[%emt 0:00:00]} Rac8 {[%emt 0:05:30] E76: King's Indian: Four Pawns Attack: Lines specific to 6 Nf3 move-order.} 13. h3 {[%emt 0:00:00]} Bxf3 {[%emt 0:00:06]} 14. Qxf3 {[%emt 0:00:00]} (14. gxf3 Nh5 15. Kh2 e6 $15) 14... Nd7 {[%emt 0:00:40] White is slightly better.} 15. Qf2 {[%emt 0:00:00]} Nb4 {[%emt 0:08:04]} 16. Be2 {[%emt 0:00:00]} ({White should play} 16. Bb1 $14) 16... Nc5 $11 {[%emt 0:02:53]} 17. Bxc5 {[%emt 0:00:00]} Qxc5 {[%emt 0:04:09]} 18. Qxc5 {[%emt 0:00:00] [#]} Rxc5 $146 {[%emt 0:00:07]} ({Predecessor:} 18... dxc5 19. e5 Nc6 20. Bf3 Nd4 21. Bxb7 Rb8 22. Bf3 Rxb2 23. Rf2 Rfb8 24. Bd1 f6 25. exf6 Bxf6 {½-½ Pazdziora,M (2205)-Kielar,M (1976) Rewal op-A 12th 2007 (1)}) 19. a3 {[%emt 0:00:00]} Na6 {[%emt 0:05:58]} 20. b4 {[%emt 0:00:00]} Rcc8 {[%emt 0:00:18]} 21. Nd5 {[%emt 0:00:00]} Rfe8 {[%emt 0:00:46] [#] Black is weak on the light squares} 22. c5 $1 {[%emt 0:00:00]} e6 {[%emt 0:36:04]} 23. Bb5 $1 {[%emt 0:00:00]} exd5 {[%emt 0:03:50]} 24. Bxe8 {[%emt 0:00:00]} Rxe8 {[%emt 0:01:05]} 25. cxd6 {[%emt 0:00:00]} Bd4+ $1 {[%emt 0:08:35]} 26. Kh1 {[%emt 0:00:00]} (26. Kh2 $14 dxe4 27. d7) 26... Kf8 {[%emt 0:06:54]} 27. e5 $36 {[%emt 0:00:00][%mdl 2048] White fights for an advantage.} Be3 {[%emt 0:00:52]} (27... Bb2 $11 {remains equal.}) 28. Rc3 {[%emt 0:00:00][%mdl 1024] White has strong compensation.} d4 {[%emt 0:00:31]} 29. Rc4 {[%emt 0:00:00]} (29. Rc2 $16) 29... Rd8 $14 {[%emt 0:04:11]} 30. g3 {[%emt 0:04:45] aiming for f5.} b5 $2 {[%emt 0:03:22]} (30... b6 $11 {and Black is okay.}) 31. Rc6 $1 $18 {[%emt 0:01:14]} Nb8 {[%emt 0:00:06]} 32. Rc7 {[%emt 0:00:23]} Nd7 {[%emt 0:01:00]} 33. Kg2 {[%emt 0:00:29]} Nb6 {[%emt 0:00:41]} (33... a6 $142 34. Ra7 d3 35. Rxa6 Nb6) 34. Kf3 $2 {[%emt 0:00:53]} (34. Rxa7 d3 $16) (34. f5 $1 $18 {[%cal Rf5g6] and the rest is easy. Threatens to win with fxg6.} Rd7 35. Rxd7 Nxd7 36. e6) 34... Nc4 $16 {[%emt 0:00:17] And now ...Nd2+ would win.} 35. Ke2 {[%emt 0:00:39]} (35. Rxa7 Nd2+ 36. Kg2 Nxf1 37. Kxf1 d3 $17) (35. Ra1 $5 {[%cal Ra3a4]}) 35... g5 {[%emt 0:02:35]} (35... Nd2 $1 $14) 36. Kd3 {[%emt 0:05:23] White is more active.} (36. Rxa7 $2 d3+ 37. Kxd3 Bxa7 $19) (36. fxg5 $142 Nxe5 37. Rf5 (37. Rxa7 Bxg5 38. h4 Bh6 $17) 37... d3+ 38. Kxe3 Rxd6 39. Rf6 (39. Rxe5 d2 $14) (39. Rc8+ Kg7 $14)) 36... gxf4 {[%emt 0:00:15]} 37. gxf4 {[%emt 0:00:01]} (37. Rxa7 $2 Nxe5+ 38. Ke4 Nc4 $19) 37... Nd2 {[%emt 0:00:45]} (37... a6 $14) 38. Rd1 $18 {[%emt 0:00:33]} Nc4 {[%emt 0:00:30] Strongly threatening ...Nb2+.} 39. Ke4 {[%emt 0:00:22]} (39. Rxa7 $2 {loses.} Nb2+ 40. Ke2 Nxd1 41. Kxd1 d3 $19) 39... Re8 {[%emt 0:00:32]} 40. Kf5 {[%emt 0:04:04]} ({Stronger than} 40. Rxa7 Nxd6+ 41. Kf3 Nc4 $15) ({Better is} 40. Rxd4 $1 $18 Bxd4 41. Kxd4) 40... Nb2 {[%emt 0:00:12][%mdl 8192]} (40... h6 $16 41. h4 (41. Rxa7 d3 $11) 41... Nb2) 41. d7 $1 {[%emt 0:07:52][%cal Oc7c8]} Rd8 {[%emt 0:01:29] [#] Against Rc8} 42. Kf6 $1 {[%emt 0:00:58][%cal Oc7c8] White wants to mate with Rc8!} Bf2 {[%emt 0:05:19] [#]} (42... Bxf4 43. Rxd4) 43. Rg1 $3 {[%emt 0:01:15][%mdl 576] Back Rank, Promotion. White mates.} d3 {[%emt 0:02:56]} 44. Rc8 {[%emt 0:02:29][%cal Rc8d8]} Bb6 {[%emt 0:00:02]} 45. Rg7 {[%emt 0:02:31]} d2 {[%emt 0:06:09]} 46. Rxf7+ {[%emt 0:00:05]} Kg8 {[%emt 0:00:02]} 47. Re7 {[%emt 0:00:19]} h5 {[%emt 0:00:59]} 48. Kg6 {[%emt 0:00:14] Magnificent play by Khmelniker!   Weighted Error Value: White=0.21 (precise) /Black=0.36} 1-0

[Event "Israeli Team-ch 2023"]
[Site "Petah Tikva"]
[Date "2023.01.20"]
[Round "3.15"]
[White "Liubarov, Mark"]
[Black "Sokolovsky, Yahli"]
[Result "1/2-1/2"]
[ECO "E04"]
[WhiteElo "2291"]
[BlackElo "2431"]
[Annotator "TA"]
[PlyCount "84"]
[EventDate "2023.01.13"]
[EventCountry "ISR"]
[SourceTitle "playchess.com"]
[Source "ChessBase"]
[SourceQuality "1"]
[TimeControl "40/5400+30:1800+30"]

{[%evp 14,84,0,0,0,-10,0,0,0,0,0,0,0,0,0,0,0,0,0,-46,-47,-45,-43,-80,-41,-69,-68,-71,-72,-77,-77,-89,-79,-96,-62,-81,-58,-81,0,-30,-36,-16,0,-22,-23,-40,-12,-12,-12,-12,-12,-19,0,0,0,0,0,0,0,0,0,0,0,0,0,0,0,0,0,0,0,0,0]} 1. d4 {[%emt 0:04:49]} d5 {[%emt 0:00:36]} 2. c4 {[%emt 0:00:04]} c6 {[%emt 0:00:04]} 3. Nf3 {[%emt 0:00:03]} Nf6 {[%emt 0:00:11]} 4. Nc3 {[%emt 0:00:16]} e6 {[%emt 0:00:11]} 5. g3 {[%emt 0:00:07]} dxc4 {[%emt 0:01:37]} 6. Bg2 {[%emt 0:00:56]} b5 {[%emt 0:03:10]} 7. O-O {[%emt 0:03:19]} Bb7 {[%emt 0:02:29]} 8. Ne5 {[%emt 0:19:13]} a6 {[%emt 0:00:26] E04: Open Catalan: 5 Nf3.} 9. a4 {[%emt 0:01:36]} (9. b3 $5 {[%cal Rb3c4]}) 9... Be7 {[%emt 0:03:55]} 10. axb5 {[%emt 0:04:47]} axb5 {[%emt 0:00:07]} 11. Rxa8 {[%emt 0:00:31]} Bxa8 {[%emt 0:00:04]} 12. Nxb5 {[%emt 0:01:11]} cxb5 {[%emt 0:00:18]} 13. Bxa8 {[%emt 0:02:25]} O-O {[%emt 0:00:56]} 14. Bg2 {[%emt 0:03:47]} Qc7 {[%emt 0:08:51]} 15. Bf4 {[%emt 0:09:03][%cal Oe5g6]} Bd6 {[%emt 0:08:43] [#]} 16. Qc2 $146 {[%emt 0:11:48]} (16. e4 $11) ({Predecessor:} 16. e4 Rd8 17. Qe2 Nfd7 18. Nxd7 Qxd7 19. e5 Bf8 20. Rd1 Nc6 21. d5 exd5 22. Rxd5 {½-½ Can,E (2569)-Anton Guijarro,D (2673) FIDE World Cup Europe Swiss playoff rapid 2021 (8)}) 16... Nd5 $15 {[%emt 0:06:45]} 17. e3 {[%emt 0:02:18]} Na6 {[%emt 0:14:50][%cal Bb8a6,Ba6b4,Bb4d3][%mdl 32]} 18. Be4 {[%emt 0:09:24]} Nf6 {[%emt 0:04:08]} 19. Bf3 {[%emt 0:00:55]} Nb4 {[%emt 0:03:30]} 20. Qd2 {[%emt 0:01:53][%cal Oe5c4]} Nfd5 {[%emt 0:04:32]} 21. h4 {[%emt 0:04:04]} Ra8 {[%emt 0:05:49]} 22. Qc1 {[%emt 0:04:46]} Rc8 {[%emt 0:14:40]} 23. h5 {[%emt 0:02:18]} f6 {[%emt 0:03:46]} 24. Ng4 {[%emt 0:01:08]} Nd3 {[%emt 0:00:33] A dynamic duo of knights.} 25. Qd2 {[%emt 0:02:45]} f5 {[%emt 0:01:30]} (25... h6 $17) 26. Ne5 {[%emt 0:02:38]} Bxe5 {[%emt 0:02:04]} (26... Nxe5 $2 27. Bxd5 exd5 28. dxe5 $18 (28. Bxe5 Bxe5 29. dxe5 Qxe5 $11)) 27. Bxe5 {[%emt 0:03:10]} Nxe5 {[%emt 0:06:08]} (27... Qd7 {is interesting.} 28. h6 gxh6 29. Ra1 Nb6) 28. dxe5 {[%emt 0:00:01]} Qxe5 {[%emt 0:00:20]} 29. Rd1 {[%emt 0:02:07][%cal Rf3d5]} b4 {[%emt 0:02:09]} (29... Nf6 $5 {[%cal Re5c5]}) 30. Bxd5 {[%emt 0:00:38] The position is equal.} Qxd5 {[%emt 0:00:05]} 31. Qxd5 {[%emt 0:00:16]} exd5 {[%emt 0:00:03]} 32. Rxd5 $11 {[%emt 0:00:12][%mdl 4096] Endgame KR-KR} c3 {[%emt 0:00:18]} (32... Kf7 $5 {[%cal Rf7e6]}) 33. bxc3 {[%emt 0:00:07]} bxc3 {[%emt 0:00:06]} 34. Rd1 $1 {[%emt 0:00:06]} Kf7 {[%emt 0:00:35]} (34... c2 $5 35. Rc1 $8 Kf7 $11) 35. Kf1 {[%emt 0:02:13]} Kf6 {[%emt 0:00:29] [#] Threatens to win with ...Kg5.} (35... c2 $5 36. Rc1 $8 Kf6 $11) 36. Ke2 {[%emt 0:00:52]} Kg5 {[%emt 0:00:48][%cal Oc3c2]} 37. f3 {[%emt 0:01:10]} Kxh5 {[%emt 0:01:10] Hoping for ...g5.} 38. Rc1 {[%emt 0:01:33]} g5 {[%emt 0:00:44] aiming for ...Kg6.} 39. Kd3 {[%emt 0:00:10]} Kg6 {[%emt 0:02:26] [#] ...h5 would be deadly.} 40. Rxc3 {[%emt 0:00:34]} Rxc3+ {[%emt 0:00:46]} 41. Kxc3 {[%emt 0:30:02]} h5 {[%emt 0:19:48][%cal Of5f4] ( -> ...f4!)} 42. Kd3 {[%emt 0:00:00]} Kf6 {[%emt 0:01:32] Weighted Error Value: White=0.08 (flawless) /Black=0.10 (very precise)} 1/2-1/2